[Event "December 12 Early 2023"]
[Site "https://www.chess.com"]
[Date "2023.12.12"]
[Round "3"]
[White "La Villa Rivas, Marlon Javier"]
[Black "Reinecke, Katharina"]
[Result "0-1"]
[Board "222"]
[TimeControl "180+1"]
[WhiteFideId "3519546"]
[BlackFideId "12929727"]
[WhiteElo "2369"]
[BlackElo "2005"]
[WhiteTeam "CUB"]
[BlackTeam "GER"]
[WhiteClock "0:00:47"]
[BlackClock "0:00:06"]

1. e4 {[%clk 0:03:00]}  c6 {[%clk 0:02:59]} 2. c4 {[%clk 0:02:59]}  d5 {[%clk 0:02:58]} 3. cxd5 {[%clk 0:03:00]}  cxd5 {[%clk 0:02:57]} 4. exd5 {[%clk 0:03:01]}  Nf6 {[%clk 0:02:56]} 5. Qa4+ {[%clk 0:03:01]}  Nbd7 {[%clk 0:02:45]} 6. Nc3 {[%clk 0:02:59]}  g6 {[%clk 0:02:38]} 7. Nf3 {[%clk 0:02:59]}  Bg7 {[%clk 0:02:37]} 8. Bc4 {[%clk 0:02:59]}  O-O {[%clk 0:02:35]} 9. O-O {[%clk 0:02:59]}  Nb6 {[%clk 0:02:33]} 10. Qb3 {[%clk 0:02:59]}  Nxc4 {[%clk 0:02:28]} 11. Qxc4 {[%clk 0:03:00]}  b6 {[%clk 0:02:23]} 12. d4 {[%clk 0:02:52]}  Bb7 {[%clk 0:02:22]} 13. Bg5 {[%clk 0:02:51]}  Nxd5 {[%clk 0:02:11]} 14. Rfe1 {[%clk 0:02:42]}  Rc8 {[%clk 0:01:41]} 15. Qd3 {[%clk 0:02:35]}  Bf6 {[%clk 0:01:16]} 16. Bh6 {[%clk 0:02:30]}  Re8 {[%clk 0:01:13]} 17. Ne4 {[%clk 0:02:27]}  Bh8 {[%clk 0:01:07]} 18. Nfg5 {[%clk 0:02:21]}  e6 {[%clk 0:01:01]} 19. Qh3 {[%clk 0:02:16]}  Nf4 {[%clk 0:00:45]} 20. Qg4 {[%clk 0:02:16]}  Bxe4 {[%clk 0:00:24]} 21. Nxe4 {[%clk 0:02:00]}  Nh5 {[%clk 0:00:19]} 22. Rad1 {[%clk 0:01:57]}  f5 {[%clk 0:00:18]} 23. Qh3 {[%clk 0:01:29]}  fxe4 {[%clk 0:00:18]} 24. Rxe4 {[%clk 0:01:30]}  Qd7 {[%clk 0:00:15]} 25. Rde1 {[%clk 0:01:29]}  Rc6 {[%clk 0:00:14]} 26. Bg5 {[%clk 0:01:25]}  Qf7 {[%clk 0:00:14]} 27. g4 {[%clk 0:01:21]}  Ng7 {[%clk 0:00:13]} 28. Rf4 {[%clk 0:01:17]}  Qd7 {[%clk 0:00:13]} 29. Bf6 {[%clk 0:01:17]}  Rf8 {[%clk 0:00:10]} 30. g5 {[%clk 0:01:17]}  Ne8 {[%clk 0:00:10]} 31. Bxh8 {[%clk 0:01:03]}  Rxf4 {[%clk 0:00:08]} 32. Be5 {[%clk 0:01:04]}  Rf7 {[%clk 0:00:07]} 33. Re4 {[%clk 0:01:02]}  Rf5 {[%clk 0:00:07]} 34. Rh4 {[%clk 0:01:00]}  Qf7 {[%clk 0:00:06]} 35. Qg2 {[%clk 0:00:50]}  Rc1+ {[%clk 0:00:06]} 36. Qf1 {[%clk 0:00:47]}  Rxf1+ {[%clk 0:00:06]} 37. Kxf1 {[%clk 0:00:48]}  Rxf2+ {[%clk 0:00:06]} 38. Ke1 {[%clk 0:00:49]}  Rf1+ {[%clk 0:00:06]} 39. Kd2 {[%clk 0:00:50]}  Qf2+ {[%clk 0:00:06]} 40. Kc3 {[%clk 0:00:47]}  Qxh4 {[%clk 0:00:06]} 0-1

[Event "December 12 Early 2023"]
[Site "https://www.chess.com"]
[Date "2023.12.12"]
[Round "3"]
[White "Donatti, Alvaro"]
[Black "NovakRatko"]
[Result "0-1"]
[Board "223"]
[TimeControl "180+1"]
[WhiteFideId "3000303"]
[WhiteElo "1985"]
[BlackElo "2364"]
[WhiteTeam "URU"]
[WhiteClock "0:00:00"]
[BlackClock "0:01:01"]

1. e4 {[%clk 0:03:00]}  d5 {[%clk 0:02:59]} 2. d4 {[%clk 0:02:56]}  dxe4 {[%clk 0:02:59]} 3. Nc3 {[%clk 0:02:56]}  e5 {[%clk 0:02:58]} 4. d5 {[%clk 0:02:55]}  Nf6 {[%clk 0:02:58]} 5. Bg5 {[%clk 0:02:53]}  Bb4 {[%clk 0:02:59]} 6. Bb5+ {[%clk 0:02:23]}  Bd7 {[%clk 0:02:56]} 7. Qe2 {[%clk 0:02:18]}  Bxc3+ {[%clk 0:02:54]} 8. bxc3 {[%clk 0:02:17]}  O-O {[%clk 0:02:39]} 9. Bxd7 {[%clk 0:01:59]}  Nbxd7 {[%clk 0:02:38]} 10. c4 {[%clk 0:01:59]}  h6 {[%clk 0:02:36]} 11. Bh4 {[%clk 0:01:58]}  c6 {[%clk 0:02:36]} 12. dxc6 {[%clk 0:01:56]}  bxc6 {[%clk 0:02:28]} 13. Rd1 {[%clk 0:01:53]}  Qa5+ {[%clk 0:02:28]} 14. Kf1 {[%clk 0:01:52]}  Qxa2 {[%clk 0:02:26]} 15. f3 {[%clk 0:01:46]}  exf3 {[%clk 0:02:23]} 16. Nxf3 {[%clk 0:01:45]}  e4 {[%clk 0:02:23]} 17. Nd4 {[%clk 0:01:41]}  c5 {[%clk 0:02:20]} 18. Nf5 {[%clk 0:01:40]}  Qb2 {[%clk 0:02:05]} 19. g4 {[%clk 0:01:11]}  Ne5 {[%clk 0:01:47]} 20. Bxf6 {[%clk 0:01:08]}  gxf6 {[%clk 0:01:47]} 21. Nxh6+ {[%clk 0:01:08]}  Kh7 {[%clk 0:01:47]} 22. Nf5 {[%clk 0:01:03]}  Rad8 {[%clk 0:01:40]} 23. Kg2 {[%clk 0:00:50]}  Ng6 {[%clk 0:01:33]} 24. Qxe4 {[%clk 0:00:22]}  Rfe8 {[%clk 0:01:23]} 25. Qf3 {[%clk 0:00:09]}  Qxc2+ {[%clk 0:01:22]} 26. Kh3 {[%clk 0:00:08]}  Qxc4 {[%clk 0:01:14]} 27. g5 {[%clk 0:00:00]}  Nf4+ {[%clk 0:01:01]} 0-1

[Event "December 12 Early 2023"]
[Site "https://www.chess.com"]
[Date "2023.12.12"]
[Round "3"]
[White "Gazineu Neto, Rubens"]
[Black "Gutkin, Ilya"]
[Result "0-1"]
[Board "224"]
[TimeControl "180+1"]
[WhiteFideId "2174685"]
[BlackFideId "16203470"]
[WhiteElo "1976"]
[BlackElo "2359"]
[WhiteTeam "BRA"]
[BlackTeam "GER"]
[WhiteClock "0:00:00"]
[BlackClock "0:00:18"]

1. e4 {[%clk 0:03:00]}  e5 {[%clk 0:02:59]} 2. Nf3 {[%clk 0:03:01]}  Nc6 {[%clk 0:02:54]} 3. Bb5 {[%clk 0:03:01]}  Nf6 {[%clk 0:02:50]} 4. O-O {[%clk 0:03:00]}  Nxe4 {[%clk 0:02:49]} 5. d4 {[%clk 0:03:00]}  Nd6 {[%clk 0:02:49]} 6. Bxc6 {[%clk 0:03:00]}  dxc6 {[%clk 0:02:49]} 7. dxe5 {[%clk 0:03:00]}  Nf5 {[%clk 0:02:49]} 8. Qxd8+ {[%clk 0:03:01]}  Kxd8 {[%clk 0:02:50]} 9. Nc3 {[%clk 0:02:59]}  Be7 {[%clk 0:02:49]} 10. h3 {[%clk 0:02:52]}  h6 {[%clk 0:02:47]} 11. g4 {[%clk 0:02:44]}  Nh4 {[%clk 0:02:47]} 12. Nxh4 {[%clk 0:02:44]}  Bxh4 {[%clk 0:02:47]} 13. Be3 {[%clk 0:02:22]}  Be6 {[%clk 0:02:34]} 14. Rad1+ {[%clk 0:02:17]}  Ke8 {[%clk 0:02:33]} 15. f4 {[%clk 0:02:09]}  Bc4 {[%clk 0:02:29]} 16. Rf3 {[%clk 0:01:58]}  Rd8 {[%clk 0:02:23]} 17. Rxd8+ {[%clk 0:01:39]}  Kxd8 {[%clk 0:02:23]} 18. b3 {[%clk 0:01:35]}  Ba6 {[%clk 0:02:09]} 19. Bf2 {[%clk 0:01:10]}  Bxf2+ {[%clk 0:01:43]} 20. Kxf2 {[%clk 0:01:09]}  h5 {[%clk 0:01:42]} 21. g5 {[%clk 0:01:01]}  g6 {[%clk 0:01:39]} 22. Ne4 {[%clk 0:00:57]}  b6 {[%clk 0:01:38]} 23. c4 {[%clk 0:00:54]}  Bc8 {[%clk 0:01:34]} 24. Rd3+ {[%clk 0:00:47]}  Ke7 {[%clk 0:01:34]} 25. h4 {[%clk 0:00:45]}  Bf5 {[%clk 0:01:30]} 26. Ke3 {[%clk 0:00:44]}  a5 {[%clk 0:01:10]} 27. Rd2 {[%clk 0:00:38]}  a4 {[%clk 0:01:05]} 28. b4 {[%clk 0:00:32]}  a3 {[%clk 0:01:00]} 29. c5 {[%clk 0:00:19]}  b5 {[%clk 0:00:53]} 30. Rd4 {[%clk 0:00:06]}  Ra8 {[%clk 0:00:36]} 31. Nc3 {[%clk 0:00:05]}  Be6 {[%clk 0:00:19]} 32. Kd2 {[%clk 0:00:04]}  Bc4 {[%clk 0:00:18]} 33. Kc2 {[%clk 0:00:00]}  Ke6 {[%clk 0:00:18]} 0-1

[Event "December 12 Early 2023"]
[Site "https://www.chess.com"]
[Date "2023.12.12"]
[Round "4"]
[White "Steinberg, Nitzan"]
[Black "Andreikin, Dmitry"]
[Result "1/2-1/2"]
[Board "2"]
[TimeControl "180+1"]
[WhiteFideId "2801795"]
[BlackFideId "4158814"]
[WhiteElo "2888"]
[BlackElo "3093"]
[WhiteTeam "ISR"]
[BlackTeam "FID"]
[WhiteClock "0:02:37"]
[BlackClock "0:02:21"]

1. e4 {[%clk 0:03:00]}  c5 {[%clk 0:02:58]} 2. Nf3 {[%clk 0:03:00]}  e6 {[%clk 0:02:58]} 3. d4 {[%clk 0:03:00]}  cxd4 {[%clk 0:02:59]} 4. Nxd4 {[%clk 0:03:01]}  a6 {[%clk 0:02:59]} 5. Be2 {[%clk 0:03:00]}  Nf6 {[%clk 0:02:57]} 6. Nc3 {[%clk 0:03:00]}  Qc7 {[%clk 0:02:55]} 7. O-O {[%clk 0:02:59]}  Nc6 {[%clk 0:02:56]} 8. Be3 {[%clk 0:02:59]}  Be7 {[%clk 0:02:54]} 9. f4 {[%clk 0:02:59]}  d6 {[%clk 0:02:53]} 10. Qe1 {[%clk 0:02:59]}  O-O {[%clk 0:02:52]} 11. Kh1 {[%clk 0:02:59]}  Nxd4 {[%clk 0:02:52]} 12. Bxd4 {[%clk 0:02:59]}  b5 {[%clk 0:02:52]} 13. a3 {[%clk 0:02:59]}  Bb7 {[%clk 0:02:52]} 14. Qg3 {[%clk 0:02:59]}  Rad8 {[%clk 0:02:46]} 15. Rae1 {[%clk 0:02:58]}  Qd7 {[%clk 0:02:33]} 16. Bd3 {[%clk 0:02:54]}  Nh5 {[%clk 0:02:32]} 17. Qg4 {[%clk 0:02:39]}  Nf6 {[%clk 0:02:31]} 18. Qg3 {[%clk 0:02:39]}  Nh5 {[%clk 0:02:31]} 19. Qg4 {[%clk 0:02:37]}  Nf6 {[%clk 0:02:21]} 20. Qg3 {[%clk 0:02:37]} 1/2-1/2

[Event "December 12 Early 2023"]
[Site "https://www.chess.com"]
[Date "2023.12.12"]
[Round "4"]
[White "Bacrot, Etienne"]
[Black "Zemlyanskii, Ivan"]
[Result "1-0"]
[Board "5"]
[TimeControl "180+1"]
[WhiteFideId "605506"]
[BlackFideId "24249971"]
[WhiteElo "2850"]
[BlackElo "3048"]
[WhiteTeam "FRA"]
[BlackTeam "RUS"]
[WhiteClock "0:00:14"]
[BlackClock "0:00:00"]

1. e4 {[%clk 0:03:00]}  c5 {[%clk 0:03:00]} 2. Nf3 {[%clk 0:03:00]}  e6 {[%clk 0:03:00]} 3. c3 {[%clk 0:03:00]}  d5 {[%clk 0:03:00]} 4. exd5 {[%clk 0:03:00]}  Qxd5 {[%clk 0:02:54]} 5. d4 {[%clk 0:03:00]}  Nf6 {[%clk 0:02:55]} 6. Na3 {[%clk 0:03:00]}  Qd8 {[%clk 0:02:54]} 7. Nc2 {[%clk 0:02:48]}  Nc6 {[%clk 0:02:53]} 8. Bf4 {[%clk 0:02:47]}  Nd5 {[%clk 0:02:45]} 9. Bg3 {[%clk 0:02:46]}  Be7 {[%clk 0:02:44]} 10. Bd3 {[%clk 0:02:46]}  O-O {[%clk 0:02:41]} 11. O-O {[%clk 0:02:46]}  b6 {[%clk 0:02:36]} 12. Re1 {[%clk 0:02:34]}  Bb7 {[%clk 0:02:34]} 13. Qe2 {[%clk 0:02:30]}  Bd6 {[%clk 0:02:10]} 14. Rad1 {[%clk 0:02:29]}  Bxg3 {[%clk 0:02:03]} 15. hxg3 {[%clk 0:02:29]}  cxd4 {[%clk 0:02:03]} 16. Ncxd4 {[%clk 0:02:28]}  Nxd4 {[%clk 0:01:59]} 17. Nxd4 {[%clk 0:02:28]}  Qf6 {[%clk 0:01:48]} 18. Be4 {[%clk 0:02:24]}  Rab8 {[%clk 0:01:44]} 19. Nb5 {[%clk 0:02:14]}  a6 {[%clk 0:01:16]} 20. Nd6 {[%clk 0:02:11]}  Bc6 {[%clk 0:01:11]} 21. Qc4 {[%clk 0:01:53]}  Ba8 {[%clk 0:00:45]} 22. Qxa6 {[%clk 0:01:49]}  Qd8 {[%clk 0:00:42]} 23. Nb5 {[%clk 0:01:31]}  Bb7 {[%clk 0:00:22]} 24. Qa3 {[%clk 0:01:27]}  Qg5 {[%clk 0:00:14]} 25. Nd6 {[%clk 0:01:19]}  Ba8 {[%clk 0:00:13]} 26. Qb3 {[%clk 0:01:06]}  Nf6 {[%clk 0:00:11]} 27. Bxa8 {[%clk 0:01:00]}  Rxa8 {[%clk 0:00:12]} 28. Ne4 {[%clk 0:00:52]}  Nxe4 {[%clk 0:00:05]} 29. Rxe4 {[%clk 0:00:53]}  h6 {[%clk 0:00:02]} 30. Red4 {[%clk 0:00:52]}  Rfb8 {[%clk 0:00:02]} 31. Rd7 {[%clk 0:00:50]}  Qf5 {[%clk 0:00:02]} 32. a3 {[%clk 0:00:46]}  Ra5 {[%clk 0:00:02]} 33. Qc4 {[%clk 0:00:45]}  Rc5 {[%clk 0:00:02]} 34. Qd3 {[%clk 0:00:39]}  Qg4 {[%clk 0:00:02]} 35. Qf3 {[%clk 0:00:36]}  Qg6 {[%clk 0:00:02]} 36. Qf4 {[%clk 0:00:32]}  Rbc8 {[%clk 0:00:01]} 37. Qb4 {[%clk 0:00:30]}  R5c6 {[%clk 0:00:01]} 38. Qb5 {[%clk 0:00:21]}  Qc2 {[%clk 0:00:01]} 39. Rd8+ {[%clk 0:00:18]}  Kh7 {[%clk 0:00:02]} 40. Qd3+ {[%clk 0:00:18]}  Qxd3 {[%clk 0:00:02]} 41. R1xd3 {[%clk 0:00:18]}  Rxd8 {[%clk 0:00:01]} 42. Rxd8 {[%clk 0:00:18]}  Rc5 {[%clk 0:00:02]} 43. Rd4 {[%clk 0:00:17]}  b5 {[%clk 0:00:02]} 44. Kf1 {[%clk 0:00:16]}  Re5 {[%clk 0:00:02]} 45. Rb4 {[%clk 0:00:16]}  h5 {[%clk 0:00:02]} 46. a4 {[%clk 0:00:15]}  bxa4 {[%clk 0:00:03]} 47. Rxa4 {[%clk 0:00:16]}  Rb5 {[%clk 0:00:03]} 48. b4 {[%clk 0:00:14]}  Rd5 {[%clk 0:00:04]} 49. Ra1 {[%clk 0:00:13]}  Rd2 {[%clk 0:00:03]} 50. Rb1 {[%clk 0:00:12]}  Rc2 {[%clk 0:00:03]} 51. Rb3 {[%clk 0:00:12]}  Rc1+ {[%clk 0:00:02]} 52. Ke2 {[%clk 0:00:12]}  Rc2+ {[%clk 0:00:03]} 53. Ke3 {[%clk 0:00:13]}  g5 {[%clk 0:00:02]} 54. b5 {[%clk 0:00:13]}  f5 {[%clk 0:00:00]} 55. b6 {[%clk 0:00:14]} 1-0

[Event "December 12 Early 2023"]
[Site "https://www.chess.com"]
[Date "2023.12.12"]
[Round "4"]
[White "Paravyan, David"]
[Black "Miladinovic, Igor"]
[Result "1-0"]
[Board "8"]
[TimeControl "180+1"]
[WhiteFideId "4194985"]
[BlackFideId "4203380"]
[WhiteElo "3025"]
[BlackElo "2824"]
[WhiteTeam "FID"]
[BlackTeam "SRB"]
[WhiteClock "0:01:21"]
[BlackClock "0:00:00"]

1. e4 {[%clk 0:03:00]}  c5 {[%clk 0:02:58]} 2. Nf3 {[%clk 0:03:01]}  Nc6 {[%clk 0:02:59]} 3. Nc3 {[%clk 0:03:02]}  e6 {[%clk 0:02:59]} 4. d4 {[%clk 0:03:02]}  cxd4 {[%clk 0:02:59]} 5. Nxd4 {[%clk 0:03:03]}  Qc7 {[%clk 0:02:59]} 6. Nxc6 {[%clk 0:03:03]}  dxc6 {[%clk 0:02:59]} 7. f4 {[%clk 0:02:58]}  e5 {[%clk 0:02:58]} 8. f5 {[%clk 0:02:58]}  Nf6 {[%clk 0:02:58]} 9. Qf3 {[%clk 0:02:57]}  b5 {[%clk 0:02:55]} 10. a4 {[%clk 0:02:53]}  b4 {[%clk 0:02:53]} 11. Nd1 {[%clk 0:02:53]}  Bc5 {[%clk 0:02:48]} 12. Be3 {[%clk 0:02:50]}  Qe7 {[%clk 0:02:45]} 13. Nf2 {[%clk 0:02:49]}  a5 {[%clk 0:02:13]} 14. Bc4 {[%clk 0:02:48]}  Ba6 {[%clk 0:02:12]} 15. Bxa6 {[%clk 0:02:47]}  Rxa6 {[%clk 0:02:12]} 16. g4 {[%clk 0:02:44]}  h6 {[%clk 0:02:06]} 17. h4 {[%clk 0:02:36]}  Qa7 {[%clk 0:02:02]} 18. Bxc5 {[%clk 0:02:30]}  Qxc5 {[%clk 0:02:03]} 19. O-O-O {[%clk 0:02:29]}  b3 {[%clk 0:02:01]} 20. Qxb3 {[%clk 0:02:19]}  O-O {[%clk 0:01:33]} 21. g5 {[%clk 0:02:13]}  Qxf2 {[%clk 0:01:08]} 22. gxf6 {[%clk 0:02:13]}  Rb6 {[%clk 0:01:08]} 23. Qc3 {[%clk 0:02:11]}  Rfb8 {[%clk 0:01:06]} 24. b3 {[%clk 0:02:08]}  Qf4+ {[%clk 0:01:03]} 25. Kb2 {[%clk 0:02:07]}  gxf6 {[%clk 0:01:00]} 26. Rhg1+ {[%clk 0:02:04]}  Kh7 {[%clk 0:01:00]} 27. Qg3 {[%clk 0:01:55]}  Qxg3 {[%clk 0:00:53]} 28. Rxg3 {[%clk 0:01:55]}  Rb4 {[%clk 0:00:47]} 29. Rd7 {[%clk 0:01:56]}  Rf8 {[%clk 0:00:43]} 30. c4 {[%clk 0:01:56]}  h5 {[%clk 0:00:41]} 31. Kc2 {[%clk 0:01:49]}  Rbb8 {[%clk 0:00:29]} 32. Rd6 {[%clk 0:01:46]}  Rg8 {[%clk 0:00:29]} 33. Rxg8 {[%clk 0:01:44]}  Rxg8 {[%clk 0:00:30]} 34. Rxf6 {[%clk 0:01:38]}  Rg2+ {[%clk 0:00:29]} 35. Kc3 {[%clk 0:01:38]}  Rg3+ {[%clk 0:00:30]} 36. Kb2 {[%clk 0:01:38]}  Kg7 {[%clk 0:00:30]} 37. Rxc6 {[%clk 0:01:38]}  Rg4 {[%clk 0:00:31]} 38. c5 {[%clk 0:01:38]}  Rxh4 {[%clk 0:00:26]} 39. Rd6 {[%clk 0:01:25]}  Rxe4 {[%clk 0:00:13]} 40. c6 {[%clk 0:01:25]}  Re2+ {[%clk 0:00:13]} 41. Kc3 {[%clk 0:01:21]}  Re3+ {[%clk 0:00:00]} 42. Kc2 {[%clk 0:01:21]} 1-0

[Event "December 12 Early 2023"]
[Site "https://www.chess.com"]
[Date "2023.12.12"]
[Round "4"]
[White "Lysyj, Igor"]
[Black "Martinez Alcantara, Jose Eduardo"]
[Result "0-1"]
[Board "9"]
[TimeControl "180+1"]
[WhiteFideId "4150120"]
[BlackFideId "3805662"]
[WhiteElo "2803"]
[BlackElo "3021"]
[WhiteTeam "FID"]
[BlackTeam "PER"]
[WhiteClock "0:00:00"]
[BlackClock "0:00:10"]

1. d4 {[%clk 0:02:59]}  Nf6 {[%clk 0:03:00]} 2. c4 {[%clk 0:02:59]}  e6 {[%clk 0:03:00]} 3. Nc3 {[%clk 0:02:59]}  Bb4 {[%clk 0:03:01]} 4. e3 {[%clk 0:02:59]}  O-O {[%clk 0:03:01]} 5. Bd3 {[%clk 0:02:59]}  d5 {[%clk 0:03:00]} 6. a3 {[%clk 0:02:58]}  Be7 {[%clk 0:02:59]} 7. cxd5 {[%clk 0:02:57]}  exd5 {[%clk 0:02:59]} 8. Nge2 {[%clk 0:02:57]}  Re8 {[%clk 0:02:58]} 9. O-O {[%clk 0:02:57]}  c6 {[%clk 0:02:56]} 10. f3 {[%clk 0:02:57]}  c5 {[%clk 0:02:56]} 11. Nf4 {[%clk 0:02:51]}  cxd4 {[%clk 0:02:55]} 12. exd4 {[%clk 0:02:50]}  Nc6 {[%clk 0:02:56]} 13. Bc2 {[%clk 0:02:48]}  Bd6 {[%clk 0:02:52]} 14. Kh1 {[%clk 0:02:42]}  Qb6 {[%clk 0:02:23]} 15. Nfe2 {[%clk 0:02:17]}  h6 {[%clk 0:02:20]} 16. b4 {[%clk 0:02:14]}  Ne7 {[%clk 0:02:17]} 17. Bb3 {[%clk 0:02:08]}  Be6 {[%clk 0:01:59]} 18. Bf4 {[%clk 0:02:06]}  Rac8 {[%clk 0:01:57]} 19. Be5 {[%clk 0:01:53]}  Qd8 {[%clk 0:01:00]} 20. Bxf6 {[%clk 0:01:51]}  gxf6 {[%clk 0:01:01]} 21. Qd2 {[%clk 0:01:49]}  Kg7 {[%clk 0:01:02]} 22. Rac1 {[%clk 0:01:42]}  Bb8 {[%clk 0:00:57]} 23. Nf4 {[%clk 0:01:39]}  Qd6 {[%clk 0:00:57]} 24. Nce2 {[%clk 0:01:27]}  Rxc1 {[%clk 0:00:47]} 25. Rxc1 {[%clk 0:01:26]}  Ng8 {[%clk 0:00:47]} 26. Ng3 {[%clk 0:01:21]}  Kf8 {[%clk 0:00:47]} 27. Nfh5 {[%clk 0:01:17]}  Bf5 {[%clk 0:00:41]} 28. Ba4 {[%clk 0:00:59]}  Rd8 {[%clk 0:00:37]} 29. Nf1 {[%clk 0:00:24]}  Bg6 {[%clk 0:00:38]} 30. Nhg3 {[%clk 0:00:24]}  h5 {[%clk 0:00:38]} 31. Bc2 {[%clk 0:00:20]}  Qf4 {[%clk 0:00:29]} 32. Bxg6 {[%clk 0:00:16]}  fxg6 {[%clk 0:00:29]} 33. Qd1 {[%clk 0:00:15]}  Ne7 {[%clk 0:00:28]} 34. Ne2 {[%clk 0:00:14]}  Qd6 {[%clk 0:00:28]} 35. Qd3 {[%clk 0:00:14]}  a6 {[%clk 0:00:28]} 36. g3 {[%clk 0:00:13]}  Kf7 {[%clk 0:00:26]} 37. Ne3 {[%clk 0:00:13]}  Qd7 {[%clk 0:00:24]} 38. Kg2 {[%clk 0:00:12]}  Re8 {[%clk 0:00:24]} 39. Nc3 {[%clk 0:00:09]}  h4 {[%clk 0:00:20]} 40. f4 {[%clk 0:00:08]}  h3+ {[%clk 0:00:20]} 41. Kf3 {[%clk 0:00:07]}  Rc8 {[%clk 0:00:17]} 42. Rc2 {[%clk 0:00:07]}  Rd8 {[%clk 0:00:16]} 43. Re2 {[%clk 0:00:07]}  f5 {[%clk 0:00:11]} 44. Qd1 {[%clk 0:00:05]}  Ng8 {[%clk 0:00:11]} 45. Na4 {[%clk 0:00:05]}  Nf6 {[%clk 0:00:11]} 46. Nc5 {[%clk 0:00:05]}  Qc8 {[%clk 0:00:09]} 47. Qb3 {[%clk 0:00:04]}  b6 {[%clk 0:00:09]} 48. Nd3 {[%clk 0:00:04]}  Kg7 {[%clk 0:00:10]} 49. Ne5 {[%clk 0:00:04]}  Qe6 {[%clk 0:00:10]} 50. Rc2 {[%clk 0:00:04]}  Bxe5 {[%clk 0:00:10]} 51. dxe5 {[%clk 0:00:04]}  Ne4 {[%clk 0:00:10]} 52. Rc7+ {[%clk 0:00:04]}  Kg8 {[%clk 0:00:11]} 53. Qd1 {[%clk 0:00:04]}  d4 {[%clk 0:00:11]} 54. Nc4 {[%clk 0:00:04]}  Qd5 {[%clk 0:00:11]} 55. Nxb6 {[%clk 0:00:03]}  Ng5+ {[%clk 0:00:10]} 56. Kf2 {[%clk 0:00:02]}  Qg2+ {[%clk 0:00:10]} 57. Ke1 {[%clk 0:00:00]}  Nf3+ {[%clk 0:00:10]} 0-1

[Event "December 12 Early 2023"]
[Site "https://www.chess.com"]
[Date "2023.12.12"]
[Round "4"]
[White "Mamedov, Edgar"]
[Black "Daneshvar, Bardiya"]
[Result "0-1"]
[Board "13"]
[TimeControl "180+1"]
[WhiteFideId "13739980"]
[BlackFideId "12576468"]
[WhiteElo "2787"]
[BlackElo "2985"]
[WhiteTeam "KAZ"]
[BlackTeam "IRI"]
[WhiteClock "0:00:00"]
[BlackClock "0:01:11"]

1. d4 {[%clk 0:03:00]}  Nf6 {[%clk 0:02:59]} 2. Bg5 {[%clk 0:02:59]}  c5 {[%clk 0:03:00]} 3. Bxf6 {[%clk 0:02:58]}  gxf6 {[%clk 0:03:00]} 4. d5 {[%clk 0:02:58]}  f5 {[%clk 0:03:00]} 5. c4 {[%clk 0:02:54]}  Bg7 {[%clk 0:03:00]} 6. Nc3 {[%clk 0:02:54]}  Qa5 {[%clk 0:02:57]} 7. Qc2 {[%clk 0:02:53]}  a6 {[%clk 0:02:55]} 8. e3 {[%clk 0:02:48]}  b5 {[%clk 0:02:54]} 9. Ne2 {[%clk 0:02:20]}  b4 {[%clk 0:02:43]} 10. Nd1 {[%clk 0:02:19]}  b3+ {[%clk 0:02:43]} 11. Qd2 {[%clk 0:02:19]}  Qxd2+ {[%clk 0:02:40]} 12. Kxd2 {[%clk 0:02:19]}  bxa2 {[%clk 0:02:41]} 13. Rxa2 {[%clk 0:02:19]}  e6 {[%clk 0:02:41]} 14. Nec3 {[%clk 0:02:14]}  d6 {[%clk 0:02:41]} 15. g3 {[%clk 0:02:13]}  Nd7 {[%clk 0:02:40]} 16. Bg2 {[%clk 0:02:11]}  Rb8 {[%clk 0:02:40]} 17. dxe6 {[%clk 0:02:03]}  fxe6 {[%clk 0:02:39]} 18. e4 {[%clk 0:02:03]}  f4 {[%clk 0:02:34]} 19. gxf4 {[%clk 0:01:57]}  Bh6 {[%clk 0:02:33]} 20. Ne2 {[%clk 0:01:54]}  Ne5 {[%clk 0:02:31]} 21. Ne3 {[%clk 0:01:49]}  Ng6 {[%clk 0:02:28]} 22. f5 {[%clk 0:01:43]}  Nh4 {[%clk 0:02:25]} 23. Rg1 {[%clk 0:01:36]}  exf5 {[%clk 0:02:23]} 24. exf5 {[%clk 0:01:33]}  Nxf5 {[%clk 0:02:23]} 25. Bc6+ {[%clk 0:01:25]}  Kd8 {[%clk 0:02:23]} 26. Nc3 {[%clk 0:01:14]}  Nd4 {[%clk 0:02:21]} 27. Bd5 {[%clk 0:01:08]}  Rf8 {[%clk 0:02:17]} 28. Rg8 {[%clk 0:01:07]}  Rxg8 {[%clk 0:02:16]} 29. Bxg8 {[%clk 0:01:08]}  Rb7 {[%clk 0:02:16]} 30. Ne4 {[%clk 0:01:05]}  Rg7 {[%clk 0:02:00]} 31. Bd5 {[%clk 0:01:01]}  Kc7 {[%clk 0:02:00]} 32. Nf6 {[%clk 0:00:59]}  Rg1 {[%clk 0:01:47]} 33. Ne8+ {[%clk 0:00:53]}  Kd7 {[%clk 0:01:43]} 34. Nf6+ {[%clk 0:00:52]}  Kd8 {[%clk 0:01:41]} 35. Ne4 {[%clk 0:00:46]}  Bf4 {[%clk 0:01:34]} 36. Ra3 {[%clk 0:00:41]}  Bxh2 {[%clk 0:01:31]} 37. Nf6 {[%clk 0:00:32]}  h6 {[%clk 0:01:27]} 38. Rd3 {[%clk 0:00:31]}  Be5 {[%clk 0:01:26]} 39. Ng8 {[%clk 0:00:28]}  h5 {[%clk 0:01:24]} 40. Nh6 {[%clk 0:00:28]}  h4 {[%clk 0:01:24]} 41. Nf7+ {[%clk 0:00:27]}  Ke7 {[%clk 0:01:24]} 42. Nxe5 {[%clk 0:00:27]}  dxe5 {[%clk 0:01:25]} 43. Nd1 {[%clk 0:00:11]}  h3 {[%clk 0:01:24]} 44. Re3 {[%clk 0:00:09]}  h2 {[%clk 0:01:24]} 45. Rxe5+ {[%clk 0:00:08]}  Kd6 {[%clk 0:01:24]} 46. Re8 {[%clk 0:00:06]}  Be6 {[%clk 0:01:21]} 47. Be4 {[%clk 0:00:04]}  Bf5 {[%clk 0:01:15]} 48. Bd5 {[%clk 0:00:03]}  Bg4 {[%clk 0:01:15]} 49. Ne3 {[%clk 0:00:03]}  Bf3 {[%clk 0:01:13]} 50. Nf5+ {[%clk 0:00:01]}  Kd7 {[%clk 0:01:10]} 51. Bxf3 {[%clk 0:00:00]}  Nxf3+ {[%clk 0:01:11]} 0-1